Cogmind - Beta 10 --- EXPLORER MODE // 2020.09.19 @ 11:08:31 Player: MS-07B Result: Destroyed by P-70 Sage with High-powered Shock Rifle Performance ------------- Evolutions (5) 2500 Regions Visited (10) 2000 Robots Destroyed (113) 565 Value Destroyed (4719) 4719 Prototype IDs (6) 120 Alien Tech Used (0) 0 Bonus (204) 204 TOTAL SCORE: 10108 Bonus ------- High Alert Combat Kills 6 Follower Combat Kills 345 Friendly Fire -147 Cogmind --------- Core Integrity 0/1000 Matter 136/300 Energy 360/360 System Corruption 25% Temperature Cool (0) Movement Walking (180) Ox2 Location -5/Factory Parts ------- > --- POWER (4) -------- Reinforced Deuterium Engine Micro Fission Core > --- PROPULSION (4) --- Armored Leg > --- UTILITY (6) ------ Medium Storage Unit Large Storage Unit Advanced Terrain Scan Processor > --- WEAPON (4) ------- (None) > --- INVENTORY (14) --- Micro Fission Core Peak State ------------ > --- POWER ------------ Enhanced Fission Core Micro Fission Core > --- PROPULSION ------- Enhanced Armored Leg Enhanced Armored Leg > --- UTILITY ---------- Improved Heat Sink Advanced Heat Sink High-capacity Storage Unit Compact Matter Pod Advanced Terrain Scan Processor Improved Target Analyzer > --- WEAPON ----------- Heavy Gatling Laser Long-range Proton Cannon Heavy Phase Cannon Enhanced Gauss Cannon > --- INVENTORY -------- Advanced Heat Sink Medium Storage Unit Compact Matter Pod Improved Thermal Defense Suite Improved Thermal Defense Suite Variable Charge Gun Enhanced Gauss Cannon [Rating: 76] Favorites ----------- Power Ion Engine Engine Ion Engine Power Core Micro Fission Core Propulsion Light Treads Treads Light Treads Leg Improved Titanium Leg Hover Unit Airjet Utility Advanced Terrain Scan Processor Device Advanced Heat Sink Storage High-capacity Storage Unit Processor Advanced Terrain Scan Processor Hackware Advanced System Shield Protection Hardened Medium Armor Plating Weapon Light Assault Rifle Energy Gun Electrolaser Energy Cannon Heavy Phase Cannon Ballistic Gun Light Assault Rifle Ballistic Cannon Enhanced Gauss Cannon Launcher Improved Grenade Launcher Build | -11 -10 -10 -10 -9 -8 -7 -6 -5 -5 -5 ------- Run | Scr Mat Min Exi Min Mat Fac Fac Fac Was Fac Slots Evolved 11 | . 1 . . . 4 2 2 2 . . Power 3 | . 1 . . . . . . 2 . . Propulsion 2 | . . . . . . . 2 . . . Utility 4 | . . . . . 2 2 . . . . Weapon 2 | . . . . . 2 . . . . . Parts Attached 132 | 7 . 1 . . 12 24 12 62 . 14 Power 23 | 1 . . . . 2 3 2 11 . 4 Engine 11 | 1 . . . . 1 2 1 4 . 2 Core 12 | . . . . . 1 1 1 7 . 2 Reactor . | . . . . . . . . . . . Propulsion 29 | 2 . . . . 2 4 2 13 . 6 Treads 2 | 2 . . . . . . . . . . Leg 25 | . . . . . 2 2 2 13 . 6 Wheel . | . . . . . . . . . . . Hover 2 | . . . . . . 2 . . . . Flight . | . . . . . . . . . . . Utility 32 | 2 . 1 . . 4 6 2 13 . 4 Device 18 | 1 . . . . 2 5 2 6 . 2 Storage 7 | 1 . 1 . . . . . 3 . 2 Processor 5 | . . . . . 2 1 . 2 . . Hackware 1 | . . . . . . . . 1 . . Protection 1 | . . . . . . . . 1 . . Artifact . | . . . . . . . . . . . Weapon 48 | 2 . . . . 4 11 6 25 . . Energy Gun 19 | . . . . . 3 4 6 6 . . Energy Cannon 7 | . . . . . . 2 . 5 . . Ballistic Gun 8 | 2 . . . . . 1 . 5 . . Ballistic Cannon 11 | . . . . . . 3 . 8 . . Launcher 3 | . . . . . 1 1 . 1 . . Special Weapon . | . . . . . . . . . . . Impact Weapon . | . . . . . . . . . . . Slashing Weapon . | . . . . . . . . . . . Piercing Weapon . | . . . . . . . . . . . Special Melee Weapon . | . . . . . . . . . . . Unidentified Prototypes 6 | . . . . . . . 1 4 . 1 Parts Lost 63 | . . . . . . 7 4 41 5 6 Power 13 | . . . . . . 2 . 8 1 2 Propulsion 13 | . . . . . . . . 10 1 2 Utility 13 | . . . . . . 1 2 7 1 2 Weapon 24 | . . . . . . 4 2 16 2 . Highest Loss Streak 9 | . . . . . . 6 3 9 5 4 Average Slot Usage (%) 77 | . 87 87 87 87 84 77 97 68 44 42 Engine 6 | . 12 12 12 12 12 5 2 1 5 5 Core 4 | . . . . . 1 3 8 7 2 6 Treads 7 | . 25 25 25 25 13 . . . . . Leg 9 | . . . . . 2 10 24 13 5 12 Device 13 | . 12 12 12 12 18 19 16 10 6 4 Storage 8 | . 12 12 12 12 8 7 6 6 6 7 Processor 6 | . . . . . . 11 12 10 8 5 Energy Gun 5 | . . . . . 11 5 24 4 . . Energy Cannon 1 | . . . . . . 3 . 4 2 . Ballistic Gun 8 | . 25 25 25 25 7 . . 3 . . Ballistic Cannon 2 | . . . . . . 5 . 3 5 . Naked Turns . | . . . . . . . . . . . Heaviest Build 105 | 16 16 40 40 40 61 61 71 105 100 57 Greatest Support 80 | 40 40 40 40 40 40 40 73 80 35 54 Greatest Overweight (x) 16 | . . . . . 1 6 1 16 10 3 Average Overweight (x) . | . . . . . . 1 . 1 . . Largest Inventory Capacity 16 | 8 8 12 12 12 12 12 12 16 12 14 Average Capacity 11 | 6 8 8 12 12 12 12 12 12 8 10 Most Carried 13 | 4 3 5 5 5 9 9 12 13 3 4 Average Carried 5 | 1 3 3 5 5 6 5 9 5 3 1 Final Capacity 14 | 8 8 12 12 12 12 12 12 12 4 14 Final Carried 9 | 3 3 5 5 5 9 9 6 3 3 1 Class Distribution -------------------- 56% | Hacker-Mutant 21% | Hacker-Gunner 9% | Scavenger-Gunner 7% | Scavenger-Mutant Dominant Class ---------------- Hacker-Mutant | -10/Materials Hacker-Mutant | -10/Mines Hacker-Mutant | -10/Exiles Hacker-Mutant | -9/Mines Hacker-Mutant | -8/Materials Hacker-Mutant | -7/Factory Hacker-Gunner | -6/Factory Scavenger-Gunner | -5/Factory Hacker-Mutant | -5/Waste Hacker-Mutant | -5/Factory Resources | -11 -10 -10 -10 -9 -8 -7 -6 -5 -5 -5 ----------- Run | Scr Mat Min Exi Min Mat Fac Fac Fac Was Fac Matter Collected 2919 | 212 66 . . 14 104 838 105 1534 46 . Remotely . | . . . . . . . . . . . Salvage Created 4682 | . 13 . . . 126 1191 772 2580 . . Parts 204 | . 3 . . . 5 58 32 106 . . Haulers Intercepted 1 | . . . . . . . . 1 . . Recyclers Shooed 6 | . 1 . . . . 1 . 4 . . Parts Field Recycled . | . . . . . . . . . . . Retrieved Matter . | . . . . . . . . . . . Parts Self-Destructed . | . . . . . . . . . . . Prevented . | . . . . . . . . . . . Kills | -11 -10 -10 -10 -9 -8 -7 -6 -5 -5 -5 ------- Run | Scr Mat Min Exi Min Mat Fac Fac Fac Was Fac Combat Hostiles Destroyed 84 | . 2 . . . 5 21 11 45 . . Melee 1 | . 1 . . . . . . . . . Guns 30 | . 1 . . . 1 5 9 14 . . Cannons 35 | . . . . . . 14 . 21 . . AOE 14 | . . . . . 4 2 . 8 . . Classes Destroyed 14 | . 1 . . . 2 8 1 2 . . Worker 4 | . . . . . . 2 . 2 . . Builder 6 | . . . . . . 2 . 4 . . Hauler 1 | . . . . . . . . 1 . . Recycler 6 | . . . . . . 4 . 2 . . Operator 1 | . . . . . . . 1 . . . Watcher 10 | . . . . . . 3 4 3 . . Swarmer 17 | . 2 . . . 2 3 2 8 . . Grunt 36 | . . . . . 2 10 6 18 . . Brawler 2 | . . . . . . 2 . . . . Duelist 1 | . . . . . 1 . . . . . Sentry 12 | . . . . . . 5 2 5 . . Hunter 8 | . . . . . . 1 . 7 . . Programmer 8 | . . . . . . 1 1 6 . . Behemoth 1 | . . . . . . . . 1 . . Best Kill Streak 8 | . 2 . . . 4 8 5 7 . . Combat Bots Only 7 | . 2 . . . 4 7 5 7 . . Max Kills in Single Turn 4 | . 1 . . . 1 1 1 4 . . Gunslinging . | . . . . . . . . . . . Exploded 2 | . . . . . 1 1 . 2 . . Melee 1 | . 1 . . . . . . . . . Uniques/NPCs Destroyed . | . . . . . . . . . . . Combat | -11 -10 -10 -10 -9 -8 -7 -6 -5 -5 -5 -------- Run | Scr Mat Min Exi Min Mat Fac Fac Fac Was Fac Damage Taken 9645 | . 31 . . . 76 1750 1008 5873 148 759 Core 1739 | . . . . . 11 371 354 825 21 157 Absorbed by Shields . | . . . . . . . . . . . Core Remaining (%) 80 | 100 . . . 100 98 47 58 . . . Volleys Fired 299 | . 4 1 1 . 17 86 33 157 . . Largest 4 | . 2 2 2 . 2 4 4 4 . . Hottest 330 | . 40 40 40 . 130 228 292 330 . . Shots Fired 683 | . 8 2 2 . 28 155 116 371 1 . Gun 355 | . 8 2 2 . 22 22 116 183 . . Cannon 304 | . . . . . . 126 . 177 1 . Launcher 24 | . . . . . 6 7 . 11 . . Special . | . . . . . . . . . . . Kinetic 297 | . 8 2 2 . 18 100 . 166 1 . Thermal 295 | . . . . . 4 48 116 127 . . Explosive 13 | . . . . . 6 7 . . . . Electromagnetic 78 | . . . . . . . . 78 . . Robot Hit Streak 51 | . 4 . . . 15 51 22 46 . . Robot Miss Streak 7 | . 1 . . . 1 1 2 7 . . Penetration Max 1 | . . . . . . . . 1 . . Secondary Targets 5 | . 1 . . . . 1 3 . . . Max Gunslinging Chain 1 | . 1 . . . . 1 1 . . . Shots Hit Robots 555 | . 7 . . . 20 129 98 301 . . Core Hits 282 | . 3 . . . 14 72 45 148 . . Critical Hits 20 | . . . . . . 1 . 19 . . Critical Kills 5 | . . . . . . 1 . 4 . . Critical Parts Destroyed 12 | . . . . . . . . 12 . . Melee Attacks . | . . . . . . . . . . . Impact . | . . . . . . . . . . . Slashing . | . . . . . . . . . . . Piercing . | . . . . . . . . . . . Sneak Attacks . | . . . . . . . . . . . Combat Hostiles . | . . . . . . . . . . . Follow-up Attacks . | . . . . . . . . . . . Damage Inflicted 13708 | . 57 . . 10 437 3260 1785 8159 . . Guns 4994 | . 52 . . . 171 262 1739 2770 . . Cannons 6293 | . . . . . . 2462 . 3831 . . Explosions 2282 | . . . . . 266 514 . 1502 . . Melee . | . . . . . . . . . . . Ramming 139 | . 5 . . 10 . 22 46 56 . . Kinetic 4807 | . 52 . . . 107 1654 . 2994 . . Thermal 6208 | . . . . . 64 1070 1739 3335 . . Explosive 1292 | . . . . . 266 514 . 512 . . Electromagnetic 1262 | . . . . . . . . 1262 . . Impact . | . . . . . . . . . . . Slashing . | . . . . . . . . . . . Piercing . | . . . . . . . . . . . Highest Corruption 24 | . . . . . . 1 . 10 16 24 Average Corruption 8 | . . . . . . 1 . 8 12 17 Corruption Purged . | . . . . . . . . . . . Effects 97 | . . . . . . 2 . 66 5 24 Message Errors 17 | . . . . . . 2 . 8 1 6 Matter Fused 18 | . . . . . . . . 11 . 7 Heat Flow Errors 4 | . . . . . . . . 3 1 . Energy Discharges 9 | . . . . . . . . 6 . 3 Data Loss (minor) 9 | . . . . . . . . 5 . 4 Data Loss (major) 4 | . . . . . . . . 3 . 1 Misfires 2 | . . . . . . . . 1 1 . Alerts 1 | . . . . . . . . 1 . . Misdirections 7 | . . . . . . . . 2 2 3 Targeting Errors 22 | . . . . . . . . 22 . . Weapon Failures 4 | . . . . . . . . 4 . . Overload Shots . | . . . . . . . . . . . Overflow Damage 336 | . . . . . 24 47 . 265 . . Projectiles 167 | . . . . . . 46 . 121 . . Explosions 169 | . . . . . 24 1 . 144 . . Melee . | . . . . . . . . . . . Knockbacks 27 | . . . . . . 11 . 16 . . Impact . | . . . . . . . . . . . Kinetic 26 | . . . . . . 11 . 15 . . Secondary 1 | . . . . . . . . 1 . . Self-Inflicted Damage 333 | . . . . . . 152 3 178 . . Shots 11 | . . . . . . 6 . 5 . . Rammed 11 | . 1 . . 2 . 3 1 4 . . Targets Rammed 24 | . 2 . . 2 . 6 6 8 . . Kicked 12 | . . . . . . 3 5 4 . . Crushed 1 | . 1 . . . . . . . . . Highest Temperature 649 | . . . . . 57 372 649 591 158 . Average Temperature 195 | . . . . . 23 89 248 204 68 . Received Heat Transfer 2064 | . . . . . 54 846 246 918 . . Effects 65 | . . . . . . 1 30 34 . . Shutdowns 15 | . . . . . . . 9 6 . . Energy Bleed 6 | . . . . . . . 3 3 . . Interference 21 | . . . . . . 1 11 9 . . Matter Decay 3 | . . . . . . . 2 1 . . Short Circuit 6 | . . . . . . . . 6 . . Damage (minor) 2 | . . . . . . . 1 1 . . Damage (major) 10 | . . . . . . . 2 8 . . Damage (core) 2 | . . . . . . . 2 . . . Siege Activations . | . . . . . . . . . . . Robots Corrupted 1 | . . . . . . . . 1 . . Combat Hostiles . | . . . . . . . . . . . Parts Fried 3 | . . . . . . . . 3 . . Impact Corruptions . | . . . . . . . . . . . Robots Melted 4 | . . . . . . . 2 2 . . Combat Hostiles 4 | . . . . . . . 2 2 . . Parts Melted 22 | . . . . . 1 1 11 9 . . Heat Transferred 10079 | . . . . . 148 1567 3483 4881 . . Parts Sabotaged . | . . . . . . . . . . . Parts Stolen . | . . . . . . . . . . . Parts Stripped . | . . . . . . . . . . . Power Chain Reactions 4 | . . . . . . . . 4 . . Missiles Intercepted . | . . . . . . . . . . . Alert | -11 -10 -10 -10 -9 -8 -7 -6 -5 -5 -5 ------- Run | Scr Mat Min Exi Min Mat Fac Fac Fac Was Fac Peak Influence 424 | . 85 23 . . 315 254 180 424 66 54 Initial 64 | . . 23 . . . 4 . 33 64 24 Average 78 | . 49 11 . . 74 79 61 130 52 24 Maximum Alert Level 2 | . . . . . 1 1 . 2 . . Low Security (%) 90 | 100 100 100 . 100 87 96 100 76 100 100 Level 1 7 | . . . . . 12 3 . 18 . . Level 2 2 | . . . . . . . . 5 . . Level 3 . | . . . . . . . . . . . Level 4 . | . . . . . . . . . . . Level 5 . | . . . . . . . . . . . High Security . | . . . . . . . . . . . Max Security . | . . . . . . . . . . . Squads Dispatched 28 | . . . . . 2 7 4 15 . . Investigation 4 | . . . . . . . . 4 . . Extermination 4 | . . . . . . 1 1 2 . . Reinforcement 15 | . . . . . 2 4 3 6 . . Assault . | . . . . . . . . . . . Garrison 5 | . . . . . . 2 . 3 . . Intercept . | . . . . . . . . . . . Construction Impeded 3 | . . . . . . 2 . 1 . . Haulers Reinforced . | . . . . . . . . . . . Stealth | -11 -10 -10 -10 -9 -8 -7 -6 -5 -5 -5 --------- Run | Scr Mat Min Exi Min Mat Fac Fac Fac Was Fac Distress Signals 4 | . . . . . . 2 . 2 . . Communications Jammed . | . . . . . . . . . . . Distress Signals . | . . . . . . . . . . . Times Spotted 156 | . 5 . . . 14 38 28 63 5 3 Peak Tracking Total 10 | . 3 . . . 3 5 4 10 5 3 Tactical Retreats 11 | . . . . . . 4 4 3 . . Traps | -11 -10 -10 -10 -9 -8 -7 -6 -5 -5 -5 ------- Run | Scr Mat Min Exi Min Mat Fac Fac Fac Was Fac Traps Triggered 10 | . . . . . . . 2 6 . 2 Indirectly 2 | . . . . . . . . 2 . . Trap Hack Attempts . | . . . . . . . . . . . Triggered . | . . . . . . . . . . . Disarmed . | . . . . . . . . . . . Reprogrammed . | . . . . . . . . . . . Reused . | . . . . . . . . . . . Traps Extracted . | . . . . . . . . . . . Installed . | . . . . . . . . . . . Triggered . | . . . . . . . . . . . Machines | -11 -10 -10 -10 -9 -8 -7 -6 -5 -5 -5 ---------- Run | Scr Mat Min Exi Min Mat Fac Fac Fac Was Fac Machines Disabled 22 | . . . . . 1 1 . 20 . . Max in Single Turn 14 | . . . . . 1 1 . 14 . . Garrison Access 2 | . . . . . . . . 2 . . Machines Sabotaged . | . . . . . . . . . . . Garrisons Compromised . | . . . . . . . . . . . Overloaded Fab Kills . | . . . . . . . . . . . Fab Network Shutdowns . | . . . . . . . . . . . Hacking | -11 -10 -10 -10 -9 -8 -7 -6 -5 -5 -5 --------- Run | Scr Mat Min Exi Min Mat Fac Fac Fac Was Fac Machines Accessed 17 | . 1 . 4 . . 2 3 7 . . Terminals 5 | . 1 . . . . . 2 2 . . Fabricators 2 | . . . . . . 1 . 1 . . Repair Stations 1 | . . . . . . . 1 . . . Recycling Units 1 | . . . . . . . . 1 . . Scanalyzers 2 | . . . . . . 1 . 1 . . Garrison Access 2 | . . . . . . . . 2 . . Total Hacks 86 | . 4 . 49 . . 6 5 22 . . Successful 78 | . 4 . 49 . . 6 4 15 . . Failed 8 | . . . . . . . 1 7 . . Catastrophic . | . . . . . . . . . . . Database Lockouts . | . . . . . . . . . . . Manual 1 | . . . 1 . . . . . . . Terminals 14 | . 4 . . . . . 3 7 . . Fabricators 3 | . . . . . . 1 . 2 . . Repair Stations 2 | . . . . . . . 2 . . . Recycling Units 4 | . . . . . . . . 4 . . Scanalyzers 10 | . . . . . . 5 . 5 . . Garrison Access 4 | . . . . . . . . 4 . . Terminal Hacks 60 | . 4 . 49 . . . 2 5 . . Record 53 | . 1 . 49 . . . . 3 . . Alert Level 1 | . 1 . . . . . . . . . Surveillance Status 1 | . 1 . . . . . . . . . Recall Extermination 1 | . . . . . . . . 1 . . Recall Reinforcements 1 | . . . . . . . 1 . . . Zone Layout 3 | . 1 . . . . . 1 1 . . Fabricator Hacks 3 | . . . . . . 1 . 2 . . Load Schematic 1 | . . . . . . . . 1 . . Build 2 | . . . . . . 1 . 1 . . Repair Station Hacks 2 | . . . . . . . 2 . . . Scan Component 1 | . . . . . . . 1 . . . Repair 1 | . . . . . . . 1 . . . Recycling Unit Hacks 1 | . . . . . . . . 1 . . Recycle Component 1 | . . . . . . . . 1 . . Scanalyzer 10 | . . . . . . 5 . 5 . . Insert Component 5 | . . . . . . 3 . 2 . . Analyze 5 | . . . . . . 2 . 3 . . Garrison Access Hacks 2 | . . . . . . . . 2 . . Seal Access 2 | . . . . . . . . 2 . . Unauthorized Hacks . | . . . . . . . . . . . Terminals . | . . . . . . . . . . . Fabricators . | . . . . . . . . . . . Repair Stations . | . . . . . . . . . . . Recycling Units . | . . . . . . . . . . . Scanalyzers . | . . . . . . . . . . . Garrison Access . | . . . . . . . . . . . Data Cores Recovered . | . . . . . . . . . . . Used . | . . . . . . . . . . . Hacking Detections 7 | . . . . . . 1 1 5 . . Full Trace Events 1 | . . . . . . . . 1 . . Feedback Events 1 | . . . . . . . . 1 . . Corruption 1 | . . . . . . . . 1 . . Feedback Blocked . | . . . . . . . . . . . Robot Schematics Acquired . | . . . . . . . . . . . Robots Built 3 | . . . . . . 3 . . . . Matter 252 | . . . . . . 252 . . . . Time 134 | . . . . . . 134 . . . . Total Robot Build Rating 12 | . . . . . . 12 . . . . Part Schematics Acquired 3 | . . . . . . 2 . 1 . . Parts Built 2 | . . . . . . . . 2 . . Matter 212 | . . . . . . . . 212 . . Time 53 | . . . . . . . . 53 . . Total Part Build Rating 12 | . . . . . . . . 12 . . Parts Repaired 1 | . . . . . . . 1 . . . Time 38 | . . . . . . . 38 . . . Parts Recycled 1 | . . . . . . . . 1 . . Recycled Matter . | . . . . . . . . . . . Retrieved Matter . | . . . . . . . . . . . Retrieved Components . | . . . . . . . . . . . Parts Scanalyzed 3 | . . . . . . 2 . 1 . . Part Schematics Acquired 3 | . . . . . . 2 . 1 . . Parts Damaged . | . . . . . . . . . . . Bothacking | -11 -10 -10 -10 -9 -8 -7 -6 -5 -5 -5 ------------ Run | Scr Mat Min Exi Min Mat Fac Fac Fac Was Fac Used RIF Installer . | . . . . . . . . . . . Robots Hacked . | . . . . . . . . . . . Non-combat . | . . . . . . . . . . . Combat . | . . . . . . . . . . . Robot Hacks Applied . | . . . . . . . . . . . Relay Couplers Released . | . . . . . . . . . . . Robots Rewired . | . . . . . . . . . . . Allies Hacked . | . . . . . . . . . . . Hacks Repelled . | . . . . . . . . . . . Allies | -11 -10 -10 -10 -9 -8 -7 -6 -5 -5 -5 -------- Run | Scr Mat Min Exi Min Mat Fac Fac Fac Was Fac Total Allies 7 | . . 3 . 1 . 3 . . . . Largest Group 4 | . . 3 3 4 4 3 . . . . Highest-Rated Group 90 | . . 40 40 71 71 90 . . . . Highest-Rated Ally 31 | . . 16 16 31 31 30 . . . . Total Orders 3 | . . 1 . . . 2 . . . . FOLLOW 1 | . . 1 . . . . . . . . GUARD 2 | . . . . . . 2 . . . . Ally Attacks 55 | . . . . . 39 16 . . . . Total Damage 830 | . . . . . 481 349 . . . . Kills 10 | . . . . . 7 3 . . . . Allies Corrupted . | . . . . . . . . . . . Allies Melted . | . . . . . . . . . . . Intel | -11 -10 -10 -10 -9 -8 -7 -6 -5 -5 -5 ------- Run | Scr Mat Min Exi Min Mat Fac Fac Fac Was Fac Robot Analysis Total . | . . . . . . . . . . . Derelict Logs Recovered . | . . . . . . . . . . . Drone Launches . | . . . . . . . . . . . Drone Recoveries . | . . . . . . . . . . . Exploration | -11 -10 -10 -10 -9 -8 -7 -6 -5 -5 -5 ------------- Run | Scr Mat Min Exi Min Mat Fac Fac Fac Was Fac Turns Passed 7859 | 83 208 831 993 114 497 1305 914 2365 118 431 Spaces Moved 4094 | 43 122 514 620 70 228 450 555 1050 133 309 Core 132 | 8 . . . . . . . 8 98 18 Treads 1546 | 35 122 514 620 70 185 . . . . . Legs 2348 | . . . . . 43 382 555 1042 35 291 Wheels . | . . . . . . . . . . . Hover 68 | . . . . . . 68 . . . . Flight . | . . . . . . . . . . . Fastest Speed 50 | 50 160 160 160 160 160 160 125 120 50 50 Average Speed 155 | 139 160 160 160 160 171 187 126 163 88 128 Slowest Speed 850 | 160 160 160 160 160 180 420 160 850 550 210 Overloaded Moves . | . . . . . . . . . . . Propulsion Burnouts . | . . . . . . . . . . . Robots Hopped . | . . . . . . . . . . . Cave-ins Triggered . | . . . . . . . . . . . Exploration Rate (%) 39 | 5 30 99 91 14 27 19 27 33 80 12 Regions Visited 10 Branch Regions 3 Pre-discovered Areas 1 | . . . 1 . . . . . . . Known Exits Taken 8 | 1 1 1 1 1 1 1 1 . . . Unknown Exits Taken . | . . . . . . . . . . . Scrap Searched 1 | . . 1 . . . . . . . . Spaces Dug . | . . . . . . . . . . . Terrain Destroyed 170 | . . . . . 32 38 . 99 1 . Melee . | . . . . . . . . . . . Projectile 26 | . . . . . . 2 . 23 1 . AOE 144 | . . . . . 32 36 . 76 . . Terrain Rammed . | . . . . . . . . . . . Walls Destroyed . | . . . . . . . . . . . Machines Disabled . | . . . . . . . . . . . Actions | -11 -10 -10 -10 -9 -8 -7 -6 -5 -5 -5 --------- Run | Scr Mat Min Exi Min Mat Fac Fac Fac Was Fac Total 5042 | 66 127 521 620 71 310 765 691 1401 132 338 Wait 332 | 7 . 4 . . 31 164 74 43 . 9 Move 4085 | 42 121 513 619 69 227 449 554 1050 132 309 Hop . | . . . . . . . . . . . Pick Up 123 | 10 . 2 . . 16 22 9 58 . 6 Fast Attach 6 | . . . . . . . . . . 6 Attach 99 | 7 . . . . 5 18 10 51 . 8 Detach 4 | . . . . . . . . 4 . . Swap 27 | . . 1 . . 7 6 2 11 . . Drop 43 | . . . . . 7 14 3 19 . . Fire 299 | . 4 1 1 . 17 86 33 157 . . Melee . | . . . . . . . . . . . Ram . | . . . . . . . . . . . Kick 20 | . . . . . . 6 6 8 . . Crush 4 | . 2 . . 2 . . . . . . Escape Stasis . | . . . . . . . . . . . Rewire . | . . . . . . . . . . . Trap . | . . . . . . . . . . . Miscellaneous . | . . . . . . . . . . . Route ------- -11/Scrapyard -10/Materials -10/Mines (discovered 3 exits: *Mat x2 / *Exi) -10/Exiles (discovered 2 exits: *Min x2) -9/Mines (discovered 2 exits: *Mat x2) -8/Materials -7/Factory -6/Factory -5/Factory -5/Waste -5/Factory History --------- Turn | Location | Event 9 | -11/Scrapyard | Identified exit to Materials 9 | -11/Scrapyard | Discovered exit to Materials (range 16) 84 | -11/Scrapyard | Entered Materials 84 | -10/Materials | Evolved 1 slot: Power x1 242 | -10/Materials | Identified exit to Mines 242 | -10/Materials | Discovered exit to Mines (range 16) 292 | -10/Materials | Entered Mines 313 | -10/Mines | Build established: Hacker-Mutant 320 | -10/Mines | Deemed a non-threat by the Exiles lab entrance 320 | -10/Mines | Identified exit to Exiles 320 | -10/Mines | Discovered exit to Exiles (range 5) 372 | -10/Mines | Identified exit to Materials 372 | -10/Mines | Discovered exit to Materials (range 14) 597 | -10/Mines | Received a Rocket Launcher from a helpful Derelict 650 | -10/Mines | Discovered exit to Materials (range 5) 973 | -10/Mines | Assisted by bots powering up and referring to "LRC-V3" 1123 | -10/Mines | Entered Exiles 1123 | -10/Exiles | Accompanied by 3 allies 1157 | -10/Exiles | Identified exit to Mines 1157 | -10/Exiles | Discovered exit to Mines (range 14) 1224 | -10/Exiles | Met 8R-AWN 1247 | -10/Exiles | Met EX-HEX 1304 | -10/Exiles | Met EX-BIN 1475 | -10/Exiles | Met EX-DEC 1520 | -10/Exiles | Learned location of Zion (-7) 1568 | -10/Exiles | Discovered exit to Mines (range 12) 1694 | -10/Exiles | Visited The Gauntlet 2116 | -10/Exiles | Entered Mines 2116 | -9/Mines | Accompanied by 3 allies 2142 | -9/Mines | Met a Derelict bent on vengeance 2168 | -9/Mines | Identified exit to Materials 2168 | -9/Mines | Discovered exit to Materials (range 13) 2215 | -9/Mines | Received a Mining Laser from a helpful Derelict 2217 | -9/Mines | Discovered exit to Materials (range 5) 2230 | -9/Mines | Entered Materials 2230 | -8/Materials | Accompanied by 4 allies 2230 | -8/Materials | Evolved 4 slots: Utility x2, Weapon x2 2689 | -8/Materials | Identified exit to Factory 2689 | -8/Materials | Discovered exit to Factory (range 8) 2727 | -8/Materials | Entered Factory 2727 | -7/Factory | Accompanied by 2 allies 2727 | -7/Factory | Evolved 2 slots: Utility x2 2975 | -7/Factory | Destroyed 7 combat bots 2999 | -7/Factory | Lost 6 parts (1p1u4w) 3280 | -7/Factory | Garrison activated, responded to threat 3425 | -7/Factory | Garrison activated, responded to threat 3784 | -7/Factory | Fabricated L-41 Fighter (x3) 3820 | -7/Factory | Identified exit to Factory 3820 | -7/Factory | Discovered exit to Factory (range 16) 3907 | -7/Factory | Core integrity fell below 50% 4032 | -7/Factory | Entered another Factory area 4032 | -6/Factory | Evolved 2 slots: Propulsion x2 4212 | -6/Factory | Build established: Hacker-Gunner 4553 | -6/Factory | Repaired Lgt. Nuclear Core 4830 | -6/Factory | Lost 3 parts (2u1w) 4935 | -6/Factory | Identified exit to Factory 4935 | -6/Factory | Discovered exit to Factory (range 9) 4946 | -6/Factory | Entered another Factory area 4946 | -5/Factory | Evolved 2 slots: Power x2 5143 | -5/Factory | Lost 9 parts (2p2n1u4w) 5380 | -5/Factory | Destroyed 7 combat bots 5380 | -5/Factory | Lost 3 parts (1p1n1w) 5631 | -5/Factory | Lost 3 parts (1n1u1w) 6069 | -5/Factory | Lost 3 parts (2n1w) 6317 | -5/Factory | Garrison activated, responded to threat 6332 | -5/Factory | Core integrity fell below 50% 6375 | -5/Factory | Lost 6 parts (1n2u3w) 6630 | -5/Factory | Build established: Hacker-Mutant 6748 | -5/Factory | System corruption reached 10% 6918 | -5/Factory | Fabricated Enh. Gauss Cannon (x2) 7135 | -5/Factory | Spotted B-75 Beast 7138 | -5/Factory | Build established: Hacker-Gunner 7185 | -5/Factory | Destroyed B-75 Beast 7204 | -5/Factory | Lost 4 parts (1p3u) 7208 | -5/Factory | Core integrity fell below 20% 7311 | -5/Factory | Sucked down chute 7311 | -5/Factory | Entered Waste 7326 | -5/Waste | EMP discharged 7353 | -5/Waste | Spotted C-40 Crusher 7362 | -5/Waste | Spotted C-40 Crusher 7368 | -5/Waste | Crushed by Compactor (1 part destroyed, 2 dropped) 7371 | -5/Waste | Crushed by Compactor (1 part destroyed, 1 dropped) 7374 | -5/Waste | Crushed by Compactor (1 part destroyed, 1 dropped) 7379 | -5/Waste | Crushed by Compactor (1 part destroyed, 2 dropped) 7380 | -5/Waste | Crushed by Compactor (1 part destroyed, 2 dropped) 7382 | -5/Waste | Spotted C-40 Crusher 7390 | -5/Waste | Spotted C-40 Crusher 7391 | -5/Waste | Spotted C-40 Crusher 7411 | -5/Waste | Lost 5 parts (1p1n1u2w) 7423 | -5/Waste | Identified exit to Factory 7423 | -5/Waste | Discovered exit to Factory (range 11) 7426 | -5/Waste | EMP discharged 7429 | -5/Waste | Entered Factory 7656 | -5/Factory | Build established: Hacker-Mutant 7850 | -5/Factory | Lost 4 parts (1p2n1u) 7860 | -5/Factory | Destroyed by P-70 Sage with High-powered Shock Rifle Last Messages --------------- 07725_ U-05 Engineer lays Concrete. 07736_ TTL%MCYCQKIB2GPLK|OIERN3 07748_ U-05 Engineer lays Concrete. 07755_ K-01 Serf cleans the Subcomponent Replicator. 07767_ System corrupted: Component data lost. 07781_ Door malfunctions. 07782_ System corrupted: Matter fused (-10). 07784_ Imp. Carbon-fiber Leg destroyed. 07784_ Critical hit. 07784_ Imp. Titanium Leg destroyed. 07805_ UA7MH7 07839_ System corrupted: Energy discharge (-140). 07858_ JICWUQLQ1WENXTMKQ